{"text_format":"1","workbook":"xlsx","n_sheets":2,"sheets":["Leggimi","Compleanni"],"not_rendered":{"charts":0,"images":1,"macros":1,"external_links":0,"defined_names":4,"comments":0,"pivot_tables":0},"unopened":[],"bounds":{"document_bytes":16777216,"sheet_cells":100000,"rows_first":2000,"rows_last":500,"rows_between":2000,"halvings":0,"cell_chars":16384,"cell_head_chars":4096},"cells_cut":0,"cells_raw":0,"read":"whole","date_system":"1900"}

{"sheet":"Leggimi","index":0,"n_rows":16,"n_cols":1,"rows_kept":16,"cut":false,"hidden":false,"merged":[[0,0,1,0],[13,0,14,0],[15,0,16,0]]}
["QUESTO FILE UTILIZZA IL PROGRAMMA DI EXCEL"]
[]
["Semplice file per ricordare i compleanni delle persone senza fare delle figure meschine dimenticandosi"]
[" di fare loro gli auguri. Inserire nella colonna \"Nominativo\" nome e cognome del conoscente"]
["Inserire nella colonna successiva la data di nascita, le colonne \"Data di nascita\", \"Compleanno\", \"Giorni Mancanti\","]
["\"Fare gli Auguri a:\" e \"Di Anni\" sono automatiche tramite formule. Inserire nell'ultima colonna l'indirizzo E-mail se lo conoscete."]
["Nella riga \"Prima di Giorni\" va inserito un numero che permette di visualizzare nella colonna \"Fare gli auguri a\","]
[" il nominativo di chi compie gli anni nei giorni compresi nel numero digitato (es. 5) verranno visualizzati"]
["tutti i nominativi che compiono gli anni tra 1 e 5 giorni. Nella casella \"Verifica anno Bisestile\" è possibile verificare"]
["se  un anno è bisestile oppure no. Il foglio di lavoro è protetto da password per evitare di cancellare per errore"]
["le formule che sono inserite nelle celle, le celle libere servono per l'immissione dei dati."]
["Per chiudere il foglio di lavoro, usare il tasto \"FINE LAVORO\" in quanto"]
["la crocetta di chiusura del foglio, è disabilitata per evitare errori di chiusura indesiderata."]
["Un cordiale saluto e Buon Lavoro - Program By - Maurizio Vignazzi."]
[]
["E-mail: maurivi53@libero.it"]

{"sheet":"Compleanni","index":1,"n_rows":33,"n_cols":11,"rows_kept":33,"cut":false,"hidden":false,"merged":[[0,6,2,6],[0,7,2,7],[0,8,2,8],[0,9,2,9],[4,0,4,1],[0,3,2,3],[0,4,2,4],[0,5,2,5]]}
["OGGI",{"$f":"TODAY()","v":"2017-11-03"},null,"Nominativo","Data di nascita","Compleanno","Giorni Mancanti","Fare gli auguri a:","Di Anni","E-mail"]
["Anno Corrente",{"$f":"YEAR(TODAY())","v":2017}]
["PRIMA di GIORNI",3]
[null,null,null,null,"2017-11-26",{"$f":"DATE(ANNO,MONTH(E4),DAY(E4))","v":"2017-11-26"},{"$f":"F4-OGGI","v":23},{"$f":"IF(ComplGiorno(E4,Prima),D4,IF(G4=0,D4,\"\"))","v":""},{"$f":"YEAR(F4)-YEAR(E4)","v":0},null,{"$f":"ComplGiorno(E4,Prima)","v":false}]
["Verifica anno Bisestile",null,null,null,null,{"$f":"DATE(ANNO,MONTH(E5),DAY(E5))","v":"2016-12-31"},{"$f":"F5-OGGI","v":-307},"",{"$f":"YEAR(F5)-YEAR(E5)","v":116},null,false]
["Inserire l'anno",2012,null,null,null,{"$f":"DATE(ANNO,MONTH(E6),DAY(E6))","v":"2016-12-31"},{"$f":"F6-OGGI","v":-307},"",{"$f":"YEAR(F6)-YEAR(E6)","v":116},null,false]
["Risultato",{"$f":"DAY(DATE(B6,3,1)-1)=29","v":true},null,null,null,{"$f":"DATE(ANNO,MONTH(E7),DAY(E7))","v":"2016-12-31"},{"$f":"F7-OGGI","v":-307},"",{"$f":"YEAR(F7)-YEAR(E7)","v":116},null,false]
[null,null,null,null,null,"2016-12-31",-307,"",116,null,false]
[null,null,null,null,null,"2016-12-31",-307,"",116,null,false]
[null,null,null,null,null,"2016-12-31",-307,"",116,null,false]
[null,null,null,null,null,"2016-12-31",-307,"",116,null,false]
[null,null,null,null,null,"2016-12-31",-307,"",116,null,false]
[null,null,null,null,null,"2016-12-31",-307,"",116,null,false]
[null,null,null,null,null,"2016-12-31",-307,"",116,null,false]
[null,null,null,null,null,"2016-12-31",-307,"",116,null,false]
[null,null,null,null,null,"2016-12-31",-307,"",116,null,false]
[null,null,null,null,null,"2016-12-31",-307,"",116,null,false]
[null,null,null,null,null,"2016-12-31",-307,"",116,null,false]
[null,null,null,null,null,"2016-12-31",-307,"",116,null,false]
[null,null,null,null,null,"2016-12-31",-307,"",116,null,false]
[null,null,null,null,null,"2016-12-31",-307,"",116,null,false]
[null,null,null,null,null,"2016-12-31",-307,"",116,null,false]
[null,null,null,null,null,"2016-12-31",-307,"",116,null,false]
[null,null,null,null,null,"2016-12-31",-307,{"$f":"IF(ComplGiorno(E24,Prima),D24,IF(G24=0,D24,\"\"))","v":""},{"$f":"YEAR(F24)-YEAR(E24)","v":116},null,false]
[null,null,null,null,null,"2016-12-31",-307,{"$f":"IF(ComplGiorno(E25,Prima),D25,IF(G25=0,D25,\"\"))","v":""},{"$f":"YEAR(F25)-YEAR(E25)","v":116},null,false]
[null,null,null,null,null,"2016-12-31",-307,"",116,null,false]
[null,null,null,null,null,"2016-12-31",-307,"",116,null,false]
[null,null,null,null,null,"2016-12-31",-307,"",116,null,false]
[null,null,null,null,null,{"$f":"DATE(ANNO,MONTH(E29),DAY(E29))","v":"2016-12-31"},{"$f":"F29-OGGI","v":-307},{"$f":"IF(ComplGiorno(E29,Prima),D29,IF(G29=0,D29,\"\"))","v":""},{"$f":"YEAR(F29)-YEAR(E29)","v":116},null,false]
[null,null,null,null,null,{"$f":"DATE(ANNO,MONTH(E30),DAY(E30))","v":"2016-12-31"},{"$f":"F30-OGGI","v":-307},{"$f":"IF(ComplGiorno(E30,Prima),D30,IF(G30=0,D30,\"\"))","v":""},{"$f":"YEAR(F30)-YEAR(E30)","v":116},null,false]
[]
[]
[null,null,null,null,null,{"$f":"COUNTIF(K4:K30,\"VERO\")","v":0}]